bitfinex-derivatives/quotes_SOLF0:USTF0_20260302
["timestamp","ask_amount","ask_price","bid_price","bid_amount"]
[1772459850002,14.72706731,83.029,82.934,22.51211714]
[1772459850205,14.72706731,82.999,82.922,22.51211714]
[1772459850405,14.72706731,82.999,82.9,7.73616952]
[1772459850406,14.72706731,82.999,82.921,24.60786512]
[1772459850707,14.72706731,83.029,82.921,2.09574798]
[1772459851005,14.72706731,83.029,82.923,22.51211714]
[1772459851400,14.72706731,83.029,82.922,22.51211714]
[1772459851608,14.72706731,83.027,82.922,22.51211714]
[1772459852003,14.72706731,83.027,82.923,14.72149102]
[1772459853298,14.72706731,83.027,82.921,24.60786512]
[1772459853299,14.72706731,83.02,82.971,14.72149102]
[1772459855205,14.72706731,83.016,82.972,10.849]
[1772459856703,25.57106731,83.015,82.972,10.849]
[1772459856904,14.72706731,83.014,82.972,10.849]
[1772459858711,3.09832721,83.01,82.972,10.849]
[1772459860004,14.72706731,83.042,82.989,14.72149102]
[1772459860308,3.09832721,83.02,82.971,14.72149102]
[1772459860502,14.72706731,83.019,82.971,14.72149102]
[1772459861214,3.09832721,83.01,82.975,10.849]
[1772459862207,14.72706731,83.019,82.975,10.849]
[1772459862917,469.99175017,83.043,82.976,14.72149102]
[1772459863116,469.99175017,83.043,83.011,14.72149102]
[1772459864320,469.99175017,83.043,83.014,10.844]
[1772459866422,484.71881748,83.043,83.014,10.844]
[1772459866919,14.72706731,83.059,83.01,17.81981823]
[1772459867120,14.72706731,83.059,83.02,3.09832721]
[1772459867326,14.72706731,83.059,83.01,14.72149102]
[1772459867327,14.72706731,83.059,83.01,17.81981823]
[1772459868226,14.72706731,83.059,83.023,10.843]
[1772459870021,0.07620209,83.049,83.03,10.842]
[1772459874533,0.07620209,83.049,83.023,24.59535946]
[1772459874929,0.07620209,83.049,83.011,13.75235946]
[1772459875136,14.07134473,83.049,82.991,13.75235946]
[1772459875531,13.99514264,83.049,82.991,13.75235946]
[1772459876435,13.99514264,83.049,83.008,10.845]
[1772459876831,10.84,83.046,83.008,10.845]
[1772459877033,13.99514264,83.049,83.014,10.844]
[1772459878537,10.84,83.048,83.008,10.845]
[1772459878735,3.09438789,83.04,83.008,10.845]
[1772459880125,13.99514264,83.047,83.014,10.844]
[1772459880331,17.08953053,83.06,83.002,13.75235946]
[1772459881336,17.08953053,83.06,83.019,10.843]
[1772459881337,0.07616607,83.039,83.019,10.843]
[1772459881538,13.99514264,83.038,82.981,13.75235946]
[1772459882434,0.07609601,83.018,83.002,10.846]
[1772459884330,13.99514264,83.038,83.008,10.845]
[1772459885137,3.09438789,83.05,83.014,10.844]
[1772459886535,13.99514264,83.052,83.02,10.843]
[1772459888228,13.99514264,83.068,83.026,10.842]
[1772459888432,3.09438789,83.04,82.992,13.75235946]
[1772459889738,13.99514264,83.049,82.992,13.75235946]
[1772459890241,13.99514264,83.047,83.009,10.845]
[1772459892443,13.99514264,83.029,82.992,13.75235946]
[1772459893235,13.99514264,83.027,82.989,10.847]
[1772459893937,13.13957044,83.041,82.994,13.14898503]
[1772459894346,13.13957044,83.029,82.981,13.14898503]
[1772459895144,13.13957044,83.029,82.997,0.07607851]
[1772459896344,13.13957044,83.029,82.997,10.92207851]
[1772459897137,3.09438789,83.04,83.004,10.845]
[1772459897338,13.13957044,83.042,82.997,13.29905274]
[1772459897747,13.13957044,83.042,82.997,13.22297423]
[1772459898244,13.13957044,83.042,83.01,10.844]
[1772459899540,3.09438789,83.04,82.981,13.22297423]
[1772459899741,13.13958542,83.039,82.981,13.22297423]
[1772459899946,16.23397331,83.03,82.981,13.22297423]
[1772459901148,13.13958542,83.039,82.993,13.22297423]
[1772459901744,16.23397331,83.03,82.993,13.22297423]
[1772459902946,16.23397331,83.03,82.987,10.847]
[1772459904450,16.23397331,83.03,82.993,10.847]
[1772459905150,13.13958542,83.03,82.993,10.847]
[1772459905451,10.43373508,83.045,83.001,13.22297423]
[1772459905751,16.23397331,83.06,83.001,13.22297423]
[1772459906748,13.13958542,83.059,83.014,10.844]
[1772459908350,13.13958542,83.056,83.014,10.844]
[1772459909253,3.09438789,83.06,83.014,10.844]
[1772459909254,13.13958542,83.053,83.014,10.844]
[1772459909952,13.13958542,83.053,83.001,13.22297423]
[1772459909953,16.23397331,83.05,83.007,10.845]
[1772459910542,10.839,83.049,83.007,10.845]
[1772459910746,13.13958542,83.039,83.0,10.846]
[1772459911150,13.13958542,83.039,82.991,13.22297423]
[1772459911346,13.13958542,83.052,83.001,13.22297423]
[1772459912248,11.15413396,83.082,82.986,22.51211714]
[1772459912249,10.45920951,83.063,83.014,13.22297423]
[1772459912454,13.13958542,83.065,83.014,13.22297423]
[1772459912751,13.13958542,83.065,83.028,10.842]
[1772459914858,13.13958542,83.065,83.034,10.841]
[1772459916957,13.13958542,83.079,83.042,24.06297423]
[1772459917256,297.03485979,83.09,83.043,13.22297423]
[1772459917562,19.01054393,83.089,83.043,13.22297423]
[1772459918060,19.01054393,83.089,83.051,10.839]
[1772459918260,19.01054393,83.093,83.052,13.22297423]
[1772459918461,19.01054393,83.093,83.05,3.09438789]
[1772459918462,13.13958542,83.107,83.06,16.31736212]
[1772459918955,13.13958542,83.107,83.061,10.838]
[1772459919153,13.13958542,83.107,83.062,13.22297423]
[1772459920262,13.13958542,83.102,83.057,10.838]
[1772459921657,13.13958542,83.102,83.064,10.837]
[1772459922057,13.13958542,83.102,83.051,13.22297423]
[1772459922261,13.13958542,83.099,83.04,3.09438789]
[1772459922462,13.13958542,83.096,83.04,16.31736212]
[1772459923259,13.13958542,83.096,83.048,10.839]
[1772459925468,13.13958542,83.096,83.049,13.22297423]
[1772459925767,13.13958542,83.109,83.06,3.09438789]
[1772459926261,475.913042,83.103,83.058,13.22297423]
[1772459927161,13.13958542,83.102,83.058,13.22297423]
[1772459927362,13.13958542,83.102,83.059,10.838]
[1772459929763,14.00244033,83.099,83.059,10.838]
[1772459930656,14.00244033,83.099,83.05,10.839]
[1772459931464,10.833,83.098,83.05,10.839]
[1772459931666,14.00244033,83.097,83.05,10.839]
[1772459932063,14.00244033,83.089,83.05,10.839]
[1772459932765,14.00244033,83.089,83.045,13.93276261]
[1772459933361,14.00244033,83.079,83.035,10.841]
[1772459933565,17.09682822,83.07,83.011,13.93276261]
[1772459934567,17.09641116,83.07,83.011,13.93276261]
[1772459935064,3.09397083,83.06,83.011,13.93276261]
[1772459935367,3.09397083,83.06,83.027,10.842]
[1772459935871,3.09397083,83.06,83.019,10.843]
[1772459936063,17.09641116,83.06,83.019,10.843]
[1772459936660,17.09641116,83.06,83.0,3.09397083]
[1772459936661,14.00244033,83.049,83.0,3.09397083]
[1772459936865,14.00244033,83.049,82.997,13.93276261]
[1772459937466,14.00244033,83.047,83.003,10.845]
[1772459938373,14.00244033,83.039,82.996,10.846]
[1772459939776,3.09397083,83.03,82.988,10.847]
[1772459940278,3.09397083,83.03,82.988,24.77976261]
[1772459941167,3.09397083,83.06,83.019,10.843]
[1772459941372,3.09397083,83.06,83.01,17.02673344]
[1772459941373,17.09641116,83.06,83.01,17.02673344]
[1772459941574,17.09641116,83.06,83.01,13.93276261]
[1772459941775,17.09641116,83.06,83.01,17.02673344]
[1772459942279,14.00244033,83.058,83.011,10.844]
[1772459942472,14.00244033,83.058,83.011,13.93276261]
[1772459942672,3.09397083,83.06,83.011,13.93276261]
[1772459942877,3.09397083,83.07,83.021,13.93276261]
[1772459943077,14.00244033,83.072,83.03,3.09397083]
[1772459943376,14.00244033,83.087,83.03,17.02673344]
[1772459943678,14.00244033,83.087,83.001,21.692]
[1772459943679,14.00244033,83.087,83.043,13.93276261]
[1772459943881,14.00244033,83.114,83.061,13.93276261]
[1772459944086,14.00244033,83.114,83.071,10.836]
[1772459945278,14.00244033,83.123,83.08,10.835]
[1772459945480,14.00244033,83.123,83.074,13.93276261]
[1772459946272,3.09397083,83.12,83.074,13.93276261]
[1772459946473,17.09641116,83.12,83.074,13.93276261]
[1772459947175,17.09641116,83.12,83.074,24.76876261]
[1772459948783,14.00244033,83.12,83.074,24.76876261]
[1772459949586,17.09641116,83.12,83.074,24.76876261]
[1772459950783,17.09641116,83.12,83.082,10.835]
[1772459950977,14.00244033,83.12,83.074,13.93276261]
[1772459951178,17.09641116,83.12,83.074,13.93276261]
[1772459952276,17.09641116,83.12,83.074,24.76876261]
[1772459952481,17.09641116,83.12,83.03,13.93276261]
[1772459952676,14.00244033,83.099,83.04,17.02673344]
[1772459952980,14.00244033,83.088,83.022,13.93276261]
[1772459953187,17.09641116,83.06,83.006,13.93276261]
[1772459954086,13.17072957,83.078,83.021,12.60468328]
[1772459955388,13.17072957,83.078,83.032,10.842]
[1772459956391,13.17072957,83.078,83.04,10.841]
[1772459956683,13.17072957,83.078,83.021,12.60468328]
[1772459957188,13.17072957,83.078,83.03,10.842]
[1772459958185,10.836,83.077,83.03,10.842]
[1772459958380,23.69217785,83.077,83.03,10.842]
[1772459958683,12.85617785,83.076,83.03,10.842]
[1772459958986,12.85617785,83.066,83.014,10.844]
[1772459959191,12.85617785,83.066,82.98,7.73325962]
[1772459959192,12.85617785,83.066,83.015,12.42757354]
[1772459960393,12.85617785,83.066,83.02,12.42757354]
[1772459961184,12.85617785,83.066,83.021,10.843]
[1772459961393,12.85617785,83.066,83.021,23.27057354]
[1772459962695,12.85617785,83.066,83.023,10.843]
[1772459962891,12.85617785,83.066,83.023,23.27057354]
[1772459963195,12.85617785,83.066,83.024,12.42757354]
[1772459963496,12.85617785,83.066,83.033,10.841]
[1772459965198,12.85617785,83.066,83.011,12.42757354]
[1772459965789,12.85617785,83.066,83.024,10.843]
[1772459965995,12.85617785,83.066,83.011,12.42757354]
[1772459967291,12.85617785,83.066,83.031,10.842]
[1772459967694,12.85617785,83.066,83.011,12.42757354]
[1772459967695,12.85617785,83.066,83.023,12.42757354]
[1772459968092,12.85617785,83.088,83.023,12.42757354]
[1772459968392,12.85617785,83.079,83.001,12.42757354]
[1772459968991,10.836,83.074,83.023,10.843]
[1772459969196,12.85617785,83.073,83.023,10.843]
[1772459969999,10.837,83.071,83.023,10.843]
[1772459970194,12.85617785,83.099,83.028,12.42757354]
[1772459970601,10.833,83.096,83.028,12.42757354]
[1772459970900,12.85617785,83.095,83.05,10.839]
[1772459971600,12.85617785,83.092,83.043,10.84]
[1772459973001,12.85617785,83.092,83.028,12.42757354]
[1772459973002,12.85617785,83.09,83.05,10.839]
[1772459974201,12.85617785,83.09,83.057,10.838]
[1772459974403,12.85617785,83.09,83.04,12.42757354]
[1772459974607,15.94841657,83.09,83.04,12.42757354]
[1772459974802,15.94841657,83.09,83.04,15.51981226]
[1772459975301,12.85617785,83.09,83.062,10.838]
[1772459975503,12.85617785,83.103,83.062,10.838]
[1772459975699,10.833,83.101,83.052,12.42757354]
[1772459975904,12.85617785,83.131,83.067,12.42757354]
[1772459976206,12.85617785,83.109,83.067,12.42757354]
[1772459976908,12.85617785,83.119,83.067,12.42757354]
[1772459977605,10.83,83.118,83.068,10.837]
[1772459977904,12.85617785,83.117,83.068,10.837]
[1772459979307,12.85617785,83.112,83.068,10.837]
[1772459979508,12.85617785,83.109,83.068,10.837]
[1772459980309,12.85617785,83.109,83.074,10.836]
[1772459980702,23.68617785,83.123,83.08,10.835]
[1772459981106,12.85617785,83.123,83.08,15.51981226]
[1772459982114,12.85617785,83.123,83.086,10.835]
[1772459982312,13.92123872,83.13,83.087,12.42757354]
[1772459982606,10.829,83.13,83.087,12.42757354]
[1772459983208,10.829,83.13,83.09,10.834]
[1772459983711,23.68517785,83.13,83.09,10.834]
[1772459984017,12.85617785,83.129,83.09,10.834]
[1772459985515,12.85617785,83.139,83.096,10.833]
[1772459985712,3.09223872,83.13,83.091,12.42757354]
[1772459986116,12.85617785,83.139,83.091,12.42757354]
[1772459986318,12.85617785,83.137,83.092,10.834]
[1772459988119,3.09223872,83.1,83.059,12.50591284]
[1772459988318,12.53699071,83.099,83.041,12.50591284]
[1772459988517,12.53699071,83.099,83.058,10.838]
[1772459988818,12.53699071,83.099,83.054,12.50591284]
[1772459990220,12.53699071,83.099,83.066,10.837]
[1772459992521,12.53699071,83.079,83.02,15.59815156]
[1772459992718,11.15413396,83.137,83.02,12.50591284]
[1772459992719,3.09223872,83.06,83.02,12.50591284]
[1772459993120,12.53699071,83.064,83.022,12.50591284]
[1772459993317,12.53699071,83.079,83.022,12.50591284]
[1772459993522,3.09223872,83.07,83.022,12.50591284]
[1772459994213,3.09223872,83.07,83.029,10.842]
[1772459994522,12.53699071,83.079,83.029,10.842]
[1772459995420,12.53699071,83.079,83.037,10.841]
[1772459995627,12.53699071,83.098,83.029,12.50591284]
[1772459997328,12.53699071,83.096,83.044,10.84]
[1772459998328,12.53699071,83.093,83.044,10.84]
[1772459999531,7.73120716,83.11,83.036,10.841]
[1772459999532,12.53699071,83.084,83.036,10.841]
[1772460000629,12.53699071,83.084,83.036,23.34691284]
[1772460000831,12.53699071,83.084,83.022,12.50591284]
[1772460001035,12.53699071,83.066,83.006,12.50591284]
[1772460001432,12.53699071,83.064,83.006,12.50591284]
[1772460001632,12.53699071,83.064,83.028,0.07608552]
[1772460002030,12.53699071,83.062,82.996,12.50591284]
[1772460002636,12.53699071,83.061,83.0,23.35191284]
[1772460003134,12.53699071,83.089,83.038,10.841]
[1772460003632,12.53699071,83.089,83.03,12.50591284]
[1772460004338,12.53699071,83.087,83.03,12.50591284]
[1772460004730,12.53699071,83.099,83.03,12.50591284]
[1772460005728,12.53699071,83.099,83.048,23.34591284]
[1772460007232,12.53699071,83.099,83.048,10.84]
[1772460007437,12.53699071,83.097,83.039,10.841]
[1772460007938,12.53699071,83.089,83.039,10.841]
[1772460008434,11.98144373,83.084,83.039,10.841]
[1772460009752,11.98144373,83.069,83.007,12.69565427]
[1772460010553,11.98144373,83.058,83.014,10.844]
[1772460017758,12.9988469,83.073,83.033,12.32013782]
[1772460018456,3.09357736,83.07,83.033,12.32013782]
[1772460018656,12.9988469,83.073,83.033,12.32013782]
[1772460018852,12.9988469,83.087,83.033,12.32013782]
[1772460019050,3.09357736,83.08,83.033,12.32013782]
[1772460019651,12.9988469,83.087,83.05,10.839]
[1772460020057,26.92542426,83.1,83.05,23.15913782]
[1772460020560,12.9988469,83.1,83.051,12.32013782]
[1772460020961,0.07589951,83.083,83.051,12.32013782]
[1772460021161,0.07589951,83.083,83.058,10.838]
[1772460022058,0.07589951,83.083,83.051,12.32013782]
[1772460022555,0.07589951,83.083,83.037,12.32013782]
[1772460023160,12.9988469,83.087,83.037,12.32013782]
[1772460023161,12.9988469,83.087,83.045,10.84]
[1772460023556,12.9988469,83.087,83.037,12.32013782]
[1772460023953,12.9988469,83.087,83.044,10.84]
[1772460024158,12.9988469,83.087,83.009,12.32013782]
[1772460024763,12.9988469,83.085,83.039,10.841]
[1772460025262,12.9988469,83.085,83.027,12.32013782]
[1772460026263,12.9988469,83.069,83.013,12.32013782]
[1772460026758,10.837,83.068,83.013,12.32013782]
[1772460026960,12.9988469,83.067,83.022,10.843]
[1772460027165,12.9988469,83.067,83.013,12.32013782]
[1772460027860,12.9988469,83.067,83.034,10.841]
[1772460028065,12.9988469,83.067,83.013,12.32013782]
[1772460028367,23.8358469,83.067,83.027,10.842]
[1772460028664,12.9988469,83.066,83.013,12.32013782]
[1772460030261,7.72939571,83.08,83.013,23.16413782]
[1772460030262,12.9988469,83.057,83.013,23.16413782]
[1772460030459,0.07619094,83.048,83.013,23.16413782]
[1772460031361,0.07619094,83.048,82.98,7.72939571]
[1772460031565,13.07503784,83.048,83.005,10.845]
[1772460031967,12.9988469,83.048,83.005,10.845]
[1772460032367,10.84,83.047,83.0,12.32013782]
[1772460032562,12.9988469,83.046,83.0,12.32013782]
[1772460033165,10.84,83.047,83.0,12.32013782]
[1772460033467,12.9988469,83.065,83.013,12.32013782]
[1772460034163,7.72939571,83.08,82.98,7.72939571]
[1772460034164,12.9988469,83.064,82.983,12.32013782]
[1772460034563,12.9988469,83.064,82.986,12.32013782]
[1772460034769,12.9988469,83.064,82.987,12.32013782]
[1772460034969,12.9988469,83.064,83.026,10.842]
[1772460037468,12.9988469,83.079,83.032,12.32013782]
[1772460037671,12.9988469,83.099,83.032,12.32013782]
[1772460038070,12.9988469,83.097,83.054,10.839]
[1772460038566,12.9988469,83.097,83.044,12.32013782]
[1772460038772,12.9988469,83.097,83.047,10.84]
[1772460039069,12.9988469,83.097,83.03,12.32013782]
[1772460039472,12.9988469,83.076,83.031,10.842]
[1772460040268,12.9988469,83.073,83.031,10.842]
[1772460040669,12.9988469,83.073,83.022,10.843]
[1772460042175,10.1521005,83.089,83.029,12.32013782]
[1772460042372,12.9988469,83.089,83.029,12.32013782]
[1772460042876,0.07639063,83.067,83.029,12.32013782]
[1772460045170,0.07639063,83.067,83.044,10.84]
[1772460045677,0.07639063,83.067,83.029,12.32013782]
[1772460046376,0.07639063,83.067,83.037,10.841]
[1772460047679,0.07639063,83.067,83.04,12.14446249]
[1772460048377,11.89138069,83.084,83.04,12.14446249]
[1772460048675,11.12788268,83.107,83.04,12.14446249]
[1772460048676,11.89138069,83.082,83.04,12.14446249]
[1772460050077,11.89138069,83.08,83.039,10.841]
[1772460051273,22.72738069,83.079,83.039,10.841]
[1772460051475,11.89138069,83.078,83.039,10.841]
[1772460052178,0.07631582,83.067,83.033,10.841]
[1772460054080,0.07631582,83.067,83.039,10.841]
[1772460054781,0.07631582,83.067,83.046,10.84]
[1772460058180,12.97559976,83.117,83.087,10.834]
[1772460058390,12.97559976,83.117,83.06,3.09314088]
[1772460058586,12.97559976,83.109,83.058,14.99151652]
[1772460058879,12.97559976,83.109,83.072,10.836]
[1772460059185,12.97559976,83.109,83.052,14.99151652]
[1772460059384,3.09042946,83.1,83.05,3.09042946]
[1772460059584,12.97559976,83.109,83.06,3.09042946]
[1772460059789,12.97559976,83.109,83.061,0.20183543]
[1772460059983,12.97559976,83.109,83.069,10.837]
[1772460060480,12.97559976,83.109,83.05,14.99151652]
[1772460060686,12.97559976,83.109,83.047,0.17616938]
[1772460061483,12.51659942,83.119,83.047,0.17616938]
[1772460061783,12.51659942,83.119,83.061,0.14958756]
[1772460062784,12.63786606,83.11,83.059,10.838]
[1772460063981,12.62573112,83.1,83.037,14.99151652]
[1772460064187,12.62573112,83.099,83.024,14.99151652]
[1772460064388,12.62573112,83.099,83.023,14.99151652]
[1772460065190,12.6261449,83.087,83.012,14.99151652]
[1772460065780,12.6261449,83.087,83.017,14.99151652]
[1772460066181,12.6261449,83.087,83.043,10.84]
[1772460066586,12.6261449,83.087,82.99,7.72691339]
[1772460066587,12.6261449,83.087,83.011,14.99151652]
[1772460066784,12.6261449,83.087,83.009,14.99151652]
[1772460067591,12.60616212,83.067,83.014,10.844]
[1772460068290,10.837,83.064,83.021,10.843]
[1772460068685,12.60616212,83.067,83.021,10.843]
[1772460069387,12.62459221,83.065,83.012,10.844]
[1772460069587,12.62459221,83.065,83.005,14.99151652]
[1772460069992,10.838,83.064,83.018,10.843]
[1772460071490,12.62459221,83.065,83.026,10.842]
[1772460072293,12.62459221,83.065,83.037,0.07634752]
[1772460072796,21.664,83.11,83.037,0.07634752]
[1772460072797,12.63209467,83.078,83.038,10.841]
[1772460074395,10.836,83.077,83.038,10.841]
[1772460074695,12.66095848,83.076,83.038,10.841]
[1772460075899,10.836,83.075,83.038,10.841]
[1772460076091,23.49742872,83.075,83.038,10.841]
[1772460076297,12.66142872,83.074,83.038,10.841]
[1772460076796,12.66142872,83.071,83.024,10.843]
[1772460076998,12.66142872,83.071,82.999,14.99151652]
[1772460077196,23.49975864,83.063,83.016,10.844]
[1772460077400,23.49975864,83.063,82.999,14.99151652]
[1772460077795,12.66175864,83.063,83.028,10.842]
[1772460077997,12.66869364,83.076,83.008,14.99151652]
[1772460078198,22.25576537,83.141,82.974,168.771]
[1772460078199,12.66869364,83.097,83.049,10.839]
[1772460078400,12.66869364,83.097,83.023,14.99151652]
[1772460078602,12.66869364,83.097,83.02,14.99151652]
[1772460078803,10.834,83.089,83.047,10.84]
[1772460079003,12.66869364,83.097,83.047,10.84]
[1772460079396,12.66900612,83.09,83.04,10.84]
[1772460079797,12.66900612,83.09,83.017,14.99151652]
[1772460080004,12.83501768,83.071,83.017,14.99151652]
[1772460080197,12.83501768,83.071,83.01,14.99151652]
[1772460080398,12.83501768,83.071,83.004,14.99151652]
[1772460081301,12.83515892,83.069,83.027,10.842]
[1772460081499,12.83515892,83.069,83.001,14.99151652]
[1772460081803,12.83515892,83.069,82.995,14.99151652]
[1772460082304,0.07612673,83.04,83.021,10.843]
[1772460083800,0.07612673,83.04,83.006,14.99151652]
[1772460084001,12.83515892,83.069,83.015,14.99151652]
[1772460084407,12.83515892,83.069,83.01,14.99151652]
[1772460084707,7.72691339,83.08,83.001,14.99151652]
[1772460084708,13.10235108,83.067,83.001,14.99151652]
[1772460085201,13.10230978,83.061,83.011,10.844]
[1772460085706,13.10230978,83.061,82.997,14.99151652]
[1772460086308,13.07166395,83.049,83.004,10.845]
[1772460088211,13.07870449,83.047,83.004,10.845]
[1772460090008,13.07870449,83.047,83.01,10.844]
[1772460090501,13.07870449,83.047,82.985,14.99151652]
[1772460090707,13.07870449,83.047,83.003,10.845]
[1772460090908,13.07870449,83.047,82.985,14.99151652]
[1772460091108,13.07870449,83.047,82.984,14.99151652]
[1772460091309,13.07870449,83.047,83.002,10.845]
[1772460092509,13.07870449,83.047,83.008,10.845]
[1772460092711,13.07870449,83.047,82.984,14.99151652]
[1772460093315,10.84,83.046,83.001,10.846]
[1772460093516,23.95534531,83.046,83.001,10.846]
[1772460093924,13.10673236,83.045,83.001,10.846]
[1772460095309,13.10669201,83.059,83.016,10.844]
[1772460096520,10.838,83.058,83.016,10.844]
[1772460096927,13.09811934,83.057,83.029,0.0759809]
[1772460097522,23.93511934,83.067,83.029,0.0759809]
[1772460097726,13.09811934,83.066,83.029,0.0759809]
[1772460098122,13.09811934,83.066,83.023,10.843]
[1772460098426,13.26554174,83.058,82.988,14.99151652]
[1772460098627,13.26554174,83.058,82.985,14.99151652]
[1772460099326,13.26539807,83.051,83.006,10.845]
[1772460099728,13.26539807,83.051,82.985,14.99151652]
[1772460100325,13.26539807,83.051,82.987,21.695]
[1772460100827,13.26539807,83.051,83.013,10.844]
[1772460101722,13.26539807,83.051,83.024,0.07602353]
[1772460103528,10.838,83.06,83.024,0.07602353]
[1772460103727,13.19081732,83.059,83.024,0.07602353]
[1772460104324,13.19081732,83.059,83.019,10.843]
[1772460105229,10.838,83.057,83.019,10.843]
[1772460105825,13.19081732,83.059,83.019,10.843]
[1772460106628,3.09483693,83.07,83.01,3.09483693]
[1772460106833,13.19247834,83.073,83.02,3.09483693]
[1772460108332,13.18423583,83.072,83.02,3.09483693]
[1772460108533,13.18423583,83.069,83.02,3.09483693]
[1772460109435,13.18423583,83.069,83.025,10.843]
[1772460110636,13.18423583,83.069,83.031,10.842]
[1772460112437,13.18423583,83.069,83.025,10.843]
[1772460112939,13.18423583,83.069,83.031,10.842]
[1772460118035,10.837,83.068,83.024,10.843]
[1772460118239,13.23758488,83.067,83.024,10.843]
[1772460118639,13.23758488,83.067,83.038,0.07596722]
[1772460124247,13.20965118,83.057,83.002,14.99151652]
[1772460124447,13.20965118,83.057,83.0,3.09398832]
[1772460124649,13.20965118,83.04,82.996,14.99151652]
[1772460124950,16.3036395,83.04,82.995,10.846]
[1772460128253,16.3036395,83.04,83.001,10.846]
[1772460128551,13.17703775,83.064,83.01,3.09398832]
[1772460128950,13.17696097,83.056,83.012,10.844]
[1772460129650,13.17696097,83.049,83.004,10.845]
[1772460131654,13.17696097,83.049,83.011,10.844]
[1772460135459,13.17696097,83.049,83.004,10.845]
[1772460136855,13.17696097,83.049,82.974,22.50271261]
[1772460137166,168.528,83.095,82.96,3.09398832]
[1772460137167,3.09398832,83.02,82.96,3.09398832]
[1772460137553,10.844,83.016,82.964,10.85]
[1772460137850,10.844,83.016,82.95,3.09398832]
[1772460138057,23.7274056,83.016,82.95,3.09398832]
[1772460138359,0.07591317,82.991,82.94,5.19079701]
[1772460138557,3.09398832,82.99,82.93,3.09398832]
[1772460139254,15.97744548,82.99,82.932,10.855]
[1772460139457,3.09398832,83.01,82.95,3.09398832]
[1772460139657,3.09398832,83.01,82.952,10.852]
[1772460140554,13.12527193,83.009,82.95,3.09398832]
[1772460140858,13.12527193,82.999,82.93,3.09398832]
[1772460142057,13.12527193,82.999,82.94,3.09398832]
[1772460143253,3.09398832,83.01,82.95,3.09398832]
[1772460143459,13.00846763,83.016,82.95,3.09398832]
[1772460143658,13.00846763,83.016,82.96,3.09398832]
[1772460144460,10.844,83.015,82.96,3.09398832]
[1772460144656,10.844,83.015,82.957,10.851]
[1772460144657,3.09398832,83.01,82.957,10.851]
[1772460146258,16.14770346,83.01,82.957,10.851]
[1772460146457,16.14770346,83.01,82.95,3.09398832]
[1772460146458,13.05371514,83.008,82.95,3.09398832]
[1772460146858,3.09398832,82.99,82.94,3.09398832]
[1772460148163,16.14768737,83.0,82.94,3.09398832]
[1772460148465,13.0841692,82.997,82.94,13.94798832]
[1772460149271,13.0841425,82.979,82.92,3.09398832]
[1772460150066,13.085142,82.976,82.92,3.09398832]
[1772460151263,13.085142,82.976,82.9,2.0981614]
[1772460151264,13.085142,82.976,82.93,3.09398832]
[1772460151463,13.0851158,83.03,82.94,3.09398832]
[1772460151668,13.0851158,83.009,82.95,3.09398832]
[1772460151859,16.20756618,83.0,82.94,3.09398832]
[1772460152063,10.847,82.992,82.94,3.09398832]
[1772460153265,16.20756618,83.0,82.941,10.853]
[1772460154171,10.846,82.997,82.948,10.853]
[1772460154669,16.20756618,83.0,82.948,10.853]
[1772460155070,13.08998102,83.021,82.96,3.09398832]
[1772460155269,3.09398832,83.02,82.96,3.09398832]
[1772460155773,16.18396934,83.02,82.96,3.09398832]
[1772460155966,16.18396934,83.02,82.97,3.09398832]
[1772460156272,27.02696934,83.02,82.97,3.09398832]
[1772460156664,13.09344659,83.019,82.97,3.09398832]
[1772460157369,13.09344659,83.019,82.96,13.94498832]
[1772460158166,21.678,83.053,82.851,37.29990607]
[1772460158167,13.07450109,83.008,82.952,10.852]
[1772460159472,10.845,83.005,82.952,10.852]
[1772460160060,10.846,82.999,82.95,3.09398832]
[1772460160269,13.07450109,83.008,82.95,3.09398832]
[1772460160668,3.09398832,83.0,82.95,3.09398832]
[1772460160865,16.16947132,83.0,82.94,3.09398832]
[1772460161271,3.09398832,82.99,82.94,3.09398832]
[1772460161469,13.07546217,82.99,82.93,3.09398832]
[1772460161666,21.683,83.033,82.9,2.0981614]
[1772460161667,3.09398832,82.97,82.92,3.09398832]
[1772460161866,16.20064309,82.97,82.919,10.856]
[1772460162171,13.10665477,82.959,82.9,3.09398832]
[1772460162373,13.10665477,82.959,82.89,5.19227623]
[1772460162569,13.10665477,82.949,82.895,10.86]